Workbook

Sheet 1
A1: Школа | B1: - | E1: Отд./корп | I1: День
A3: Прием пищи | B3: Раздел | C3: № рец. | D3: Блюдо | E3: Выход, г | F3: Цена | G3: Калорийность | H3: Белки | I3: Жиры | J3: Углеводы
A4: Завтрак | B4: гор.блюдо
B5: гор.напиток
B6: хлеб
A9: Завтрак 2 | B9: фрукты
A12: Обед | B12: закуска
B13: 1 блюдо
B14: 2 блюдо
B15: гарнир
B16: сладкое
B17: хлеб бел.
B18: хлеб черн.

Sheet ДЕНБ 1
A1: Школа | E1: Отд./корп | I1: День
A3: Прием пищи | B3: Раздел | C3: № рец. | D3: Блюдо | E3: Выход, г | F3: Цена | G3: Калорийность | H3: Белки | I3: Жиры | J3: Углеводы
A4: Завтрак | B4: гор.блюдо | C4: 80 | D4: Рыба тушенная с овощами | E4: 80/40 | F4: 40.75 | G4: 173 | H4: 19 | I4: 9 | J4: 4
B5: гарнир | C5: 466 | D5: Рис припущенный | E5: 180 | F5: 13.80 | G5: 251 | H5: 5 | I5: 5 | J5: 47
B6: хлеб | C6: 1.1 | D6: Хлеб пшеничный 1 сорта | E6: 50 | F6: 2.95 | G6: 130 | H6: 4 | I6: 1 | J6: 28
B7: гор.напиток | C7: 283 | D7: Чай витаминизированный | E7: 200 | F7: 4.02 | G7: 39 | J7: 10
E9: =SUM(E4:E8) -> 430 | F9: 61.52 | G9: 593 | H9: 27 | I9: 15 | J9: 88
B10: 1 блюдо | C10: 53.42 | D10: Щи из св. капусты со сметаной | E10: 200/10 | F10: 7.88 | G10: 81 | H10: 2 | I10: 5 | J10: 7
B11: 2 блюдо | C11: 233.23 | D11: Мясо птицы,припущенные в томатном соусе | E11: 45/45 | F11: 25.5 | G11: 252 | H11: 20 | I11: 18 | J11: 3
B12: гарнир | C12: 211.05 | D12: Макаронные изд. отварные с маслом | E12: 150/10 | F12: 14.85 | G12: 211 | H12: 6 | I12: 4 | J12: 37
B13: гор.напиток | C13: 283 | D13: Чай с сахаром | E13: 200 | F13: 1.84 | G13: 40 | J13: 10
B14: хлеб | C14: 1.2 | D14: Хлеб пшеничный 1С | E14: 30 | F14: 1.77 | G14: 71 | H14: 2 | I14: 0 | J14: 15
B15: хлеб черн. | D15: Хлеб ржаной | E15: 20 | F15: 1.16 | G15: 42 | H15: 0 | I15: 0 | J15: 9
E16: =SUM(E10:E15) -> 250 | F16: 53 | G16: 696 | H16: 30 | I16: 28 | J16: 81
E17: =E9+E16 -> 680 | F17: =F9+F16 -> 115 | G17: 1290 | H17: 57 | I17: 42 | J17: 169

Sheet День 2
A1: Школа | B1: - | E1: Отд./корп | I1: День
A3: Прием пищи | B3: Раздел | C3: № рец. | D3: Блюдо | E3: Выход, г | F3: Цена | G3: Калорийность | H3: Белки | I3: Жиры | J3: Углеводы
A4: Завтрак | B4: закуска | C4: 25.09 | D4: Салат из свеклы с яблокоми | E4: 60 | F4: 5.56 | G4: 55 | H4: 1 | I4: 3 | J4: 6
B5: гор.блюдо | C5: 78.03 | D5: Омлет запеченная с сыром | E5: 120 | F5: 32.68 | G5: 214 | H5: 15 | I5: 16 | J5: 2
B6: гор.напиток | C6: 285 | D6: Чай с лимоном и сахаром | E6: 200 | F6: 3.55 | G6: 42 | H6: 0 | I6: 0 | J6: 10
B7: хлеб | C7: 1.1 | D7: Хлеб пшеничный 1 сорта | E7: 50 | F7: 2.95 | G7: 130 | H7: 4 | I7: 1 | J7: 28
E9: =SUM(E4:E8) -> 430 | F9: 44.74 | G9: 441 | H9: 20 | I9: 20 | J9: 46
A10: Обед | B10: закуска | C10: 649.09 | D10: морковь отварная с растительным маслом | E10: 30 | F10: 4.58 | G10: 28 | H10: 0 | I10: 2 | J10: 2
B11: 1 блюдо | C11: 129.08 | D11: Суп картофельный с горохом и гренками | E11: 250 | F11: 7.47 | G11: 143 | H11: 6 | I11: 5 | J11: 19
B12: 2 блюдо | C12: 118.08 | D12: Рагу овощное с мясом | E12: 160 | F12: 52.61 | G12: 238 | H12: 13 | I12: 15 | J12: 12
B13: сладкое | C13: 305.11 | D13: Кисель витаминизированный из концентрата промышленного производства | E13: 200 | F13: 9.08 | G13: 95 | J13: 24
B14: хлеб | C14: 1.2 | D14: Хлеб пшеничный 1С | E14: 45 | F14: 2.65 | G14: 71 | H14: 2 | I14: 0 | J14: 15
B15: хлеб черн. | D15: Хлеб ржаной | E15: 20 | F15: 1.16 | G15: 42 | H15: 0 | I15: 0 | J15: 9
E16: =SUM(E10:E15) -> 705 | F16: 77.55 | G16: 616 | H16: 22 | I16: 22 | J16: 81
E17: =E9+E16 -> 1135 | F17: =F9+F16 -> 122 | G17: 1058 | H17: 41 | I17: 42 | J17: 127

Sheet День3
A1: Школа | B1: - | E1: Отд./корп | I1: День
A3: Прием пищи | B3: Раздел | C3: № рец. | D3: Блюдо | E3: Выход, г | F3: Цена | G3: Калорийность | H3: Белки | I3: Жиры | J3: Углеводы
A4: Завтрак | B4: гор.блюдо | C4: 445.3 | D4: Биточки мясные с томатным соусом | E4: 60/40 | F4: 29.1 | G4: 183 | H4: 10 | I4: 12 | J4: 9
B5: гарнир | C5: 211.05 | D5: Макаронные изд. отварные с маслом | E5: 150/5 | F5: 14.85 | G5: 244 | H5: 7 | I5: 8 | J5: 37
B6: гор.напиток | C6: 283 | D6: Какао с молоком | E6: 200 | F6: 12 | G6: 98 | H6: 4 | I6: 3 | J6: 14
B7: хлеб | C7: 1.1 | D7: Хлеб пшеничный 1 сорта | E7: 50 | F7: 2.95 | G7: 130 | H7: 4 | I7: 1 | J7: 28
B8: напиток | C8: 476.01 | D8: Йогурт для детского пиатния | E8: 100 | F8: 32.00 | G8: 62 | H8: 3 | I8: 3 | J8: 5
E9: =SUM(E4:E8) -> 350 | F9: 90.90 | G9: 717 | H9: 28 | I9: 27 | J9: 92
B10: 1 блюдо | C10: 450.13 | D10: Суп картофельный с клецками | E10: 250 | F10: 6.58 | G10: 111 | H10: 2 | I10: 6 | J10: 12
B11: 2 блюдо | C11: 423.18 | D11: Тефтели рыбные с томатным соусом | E11: 60/40 | F11: 40.75 | G11: 121 | H11: 8 | I11: 6 | J11: 8
B12: гарнир | C12: 610.03 | D12: Рис припущенный | E12: 180 | F12: 16.32 | G12: 276 | H12: 5 | I12: 8 | J12: 47
B13: гор.напиток | C13: 283 | D13: Чай с сахаром | E13: 200 | F13: 1.84 | G13: 40 | J13: 10
B14: хлеб | C14: 1.2 | D14: Хлеб пшеничный 1С | E14: 30 | F14: 1.77 | G14: 71 | H14: 2 | I14: 0 | J14: 15
B15: хлеб черн. | D15: Хлеб ржаной | E15: 20 | F15: 1.16 | G15: 42 | H15: 0 | I15: 0 | J15: 9
E16: =SUM(E10:E15) -> 680 | F16: 68.42 | G16: 661 | H16: 17 | I16: 21 | J16: 101
E17: =E9+E16 -> 1030 | F17: =F9+F16 -> 159 | G17: 1377 | H17: 44 | I17: 48 | J17: 192

Sheet День 4
A1: Школа | B1: - | F1: Отд./корп | J1: День
A3: Прием пищи | B3: Раздел | C3: № рец. | E3: Блюдо | F3: Выход, г | G3: Цена | H3: Калорийность | I3: Белки | J3: Жиры | K3: Углеводы
A4: Завтрак | B4: гор.блюдо | C4: 469.02 | E4: Фрикадельки мясные с томатным соусом | F4: 60/40 | G4: 26.01 | H4: 158 | I4: 9 | J4: 10 | K4: 8
B5: гарнир | C5: 138.06 | E5: Картофельное пюре | F5: 180 | G5: 18.62 | H5: 166 | I5: 4 | J5: 6 | K5: 24
B6: хлеб | C6: 1.1 | E6: Хлеб пшеничный 1 сорта | F6: 50 | G6: 2.95 | H6: 130 | I6: 4 | J6: 1 | K6: 28
B7: сладкое | C7: 294.01 | E7: Компот из свежих плодов | F7: 200 | G7: 7.60 | H7: 79 | I7: 0 | J7: 0 | K7: 18
C8: 27.01 | E8: Сыр поционный | F8: 11 | G8: 8.45 | H8: 37 | I8: 3 | J8: 3 | K8: 0
F9: =SUM(F4:F8) -> 430 | G9: 63.63 | H9: 569 | I9: 20 | J9: 19 | K9: 78
B10: 1 блюдо | C10: 56.13 | E10: Борщ с капустой и картофелем | F10: 250/10 | G10: 10.34 | H10: 101 | I10: 2 | J10: 6 | K10: 10
B11: 2 блюдо | C11: 445.35 | E11: Котлеты мясные с томатным соусом | F11: 60/30 | G11: 39.64 | H11: 178 | I11: 10 | J11: 12 | K11: 8
B12: гарнир | C12: 257 | E12: Каша перловая рассыпчатая с маслом | F12: 150/5 | G12: 9.75 | H12: 138 | I12: 3 | J12: 4 | K12: 22
B13: гор.напиток | C13: 283 | E13: Чай с сахаром | F13: 200 | G13: 1.84 | H13: 40 | K13: 10
B14: хлеб | C14: 1.2 | E14: Хлеб пшеничный 1С | F14: 30 | G14: 1.77 | H14: 71 | I14: 2 | J14: 0 | K14: 15
B15: хлеб черн. | E15: Хлеб ржаной | F15: 20 | G15: 1.16 | H15: 42 | I15: 0 | J15: 0 | K15: 9
F16: =SUM(F10:F15) -> 250 | G16: 64.50 | H16: 570 | I16: 17 | J16: 22 | K16: 75
F17: =F9+F16 -> 680 | G17: =G9+G16 -> 128 | H17: 1139 | I17: 37 | J17: 41 | K17: 152

Sheet День 5
A1: Школа | B1: - | E1: Отд./корп | I1: День
A3: Прием пищи | B3: Раздел | C3: № рец. | D3: Блюдо | E3: Выход, г | F3: Цена | G3: Калорийность | H3: Белки | I3: Жиры | J3: Углеводы
A4: Завтрак | B4: гор.блюдо | C4: 181 | D4: Каша рисовая вязкая молочная с маслом | E4: 200/5 | F4: 14.85 | G4: 261 | H4: 6 | I4: 7 | J4: 43
B5: гор.напиток | C5: 282.11 | D5: Чай витаминизированный | E5: 200 | F5: 4.02 | G5: 39 | J5: 10
B6: хлеб | C6: 1.1 | D6: Хлеб пшеничный 1 сорта | E6: 50 | F6: 2.95 | G6: 130 | H6: 4 | I6: 1 | J6: 28
C7: 27.01 | D7: Сыр поционный | E7: 11 | F7: 8.45 | G7: 37 | H7: 3 | I7: 3 | J7: 0
E8: =SUM(E4:E7) -> 250 | F8: 30.27 | G8: 467 | H8: 13 | I8: 11 | J8: 80
B9: 1 блюдо | C9: 54.47 | D9: Рассольник ленинградский со сметаной | E9: 200/10 | F9: 13.01 | G9: 110 | H9: 2 | I9: 5 | J9: 14
B10: 2 блюдо | C10: 509.53 | D10: Биточки из мяса птицы с томатным соусом (филе ) | E10: 60/30 | F10: 25.5 | G10: 159 | H10: 10 | I10: 9 | J10: 9
B11: гарнир | C11: 138.21 | D11: Картофельное пюре | E11: 150 | F11: 15.7 | G11: 158 | H11: 4 | I11: 5 | J11: 24
B12: гор.напиток | C12: 283 | D12: Чай с сахаром | E12: 200 | F12: 1.84 | G12: 40 | J12: 10
B13: хлеб | C13: 1.2 | D13: Хлеб пшеничный 1С | E13: 30 | F13: 1.77 | G13: 71 | H13: 2 | I13: 0 | J13: 15
B14: хлеб черн. | C14: 1.2 | D14: Хлеб ржаной | E14: 20 | F14: 1.16 | G14: 42 | H14: 0 | I14: 0 | J14: 9
E15: =SUM(E9:E14) -> 400 | F15: 58.98 | G15: 579 | H15: 18 | I15: 20 | J15: 80
E16: =E8+E15 -> 650 | F16: =F8+F15 -> 89 | G16: 1047 | H16: 31 | I16: 31 | J16: 160

Sheet День6
A1: Школа | B1: - | E1: Отд./корп | I1: День
A3: Прием пищи | B3: Раздел | C3: № рец. | D3: Блюдо | E3: Выход, г | F3: Цена | G3: Калорийность | H3: Белки | I3: Жиры | J3: Углеводы
A4: Завтрак | B4: гор.блюдо | C4: 211.56 | D4: Макаронные изд. с тертым сыром | E4: 172 | F4: 28.97 | G4: 284 | H4: 9 | I4: 13 | J4: 33
B5: гор.напиток | C5: 282.11 | D5: Чай витаминизированный | E5: 200 | F5: 4.02 | G5: 39 | J5: 10
B6: хлеб | C6: 1.1 | D6: Хлеб пшеничный 1 сорта | E6: 50 | F6: 2.95 | G6: 130 | H6: 4 | I6: 1 | J6: 28
C7: 401.08 | D7: Масло сливочное | E7: 10 | F7: 7.50 | G7: 66 | H7: 0 | I7: 7 | J7: 0
E8: =SUM(E4:E7) -> 432 | F8: 43.44 | G8: 519 | H8: 14 | I8: 20 | J8: 70
B9: 1 блюдо | C9: 56.25 | D9: Суп с мелкошинкованными овощами | E9: 250/10 | F9: 11.7 | G9: 107 | H9: 2 | I9: 6 | J9: 11
B10: 2 блюдо | C10: 131.8 | D10: Плов из мяса птицы(филе) | E10: 170 | F10: 36.8 | G10: 340 | H10: 14 | I10: 16 | J10: 35
B11: гор.напиток | C11: 283 | D11: Чай с сахаром | E11: 200 | F11: 1.84 | G11: 40 | J11: 10
B12: хлеб | C12: 1.2 | D12: Хлеб пшеничный 1С | E12: 30 | F12: 1.77 | G12: 71 | H12: 2 | I12: 0 | J12: 15
B13: хлеб черн. | C13: 1.2 | D13: Хлеб ржаной | E13: 20 | F13: 1.16 | G13: 42 | H13: 0 | I13: 0 | J13: 9
E14: =SUM(E9:E13) -> 420 | F14: 53.27 | G14: 600 | H14: 19 | I14: 22 | J14: 81
E15: =E8+E14 -> 852 | F15: =F8+F14 -> 97 | G15: 1119 | H15: 32 | I15: 42 | J15: 151

Sheet День 7
A1: Школа | B1: - | E1: Отд./корп | I1: День
A3: Прием пищи | B3: Раздел | C3: № рец. | D3: Блюдо | E3: Выход, г | F3: Цена | G3: Калорийность | H3: Белки | I3: Жиры | J3: Углеводы
A4: Завтрак | B4: гор. блюдо | C4: 506.25 | D4: Тефтели из говядины с томатным соусом | E4: 60/40 | F4: 45.43 | G4: 181 | H4: 9 | I4: 12 | J4: 9
B5: гарнир | C5: 302.01 | D5: Каша гречневая вязкая с маслом | E5: 150/10 | F5: 17.16 | G5: 182 | H5: 5 | I5: 8 | J5: 22
B6: гор.напиток | C6: 283 | D6: Чай с сахаром | E6: 200 | F6: 1.24 | G6: 40 | J6: 10
B7: хлеб | C7: 1.1 | D7: Хлеб пшеничный 1 сорта | E7: 50 | F7: 2.95 | G7: 130 | H7: 4 | I7: 1 | J7: 28
B8: напиток | C8: 476.01 | D8: Кисломолочный напиток(Йогурт) | E8: 100 | F8: 32.00 | G8: 62 | H8: 3 | I8: 3 | J8: 5
E9: =SUM(E4:E8) -> 350 | F9: 98.78 | G9: 594 | H9: 21 | I9: 24 | J9: 72
B10: закуска | C10: 25.23 | D10: Салат из свеклы с растительном маслом | E10: 60 | F10: 3.89 | G10: 76 | H10: 1 | I10: 5 | J10: 7
B11: 1 блюдо | C11: 66.63 | D11: Суп-лапша | E11: 200 | F11: 3.91 | G11: 97 | H11: 2 | I11: 4 | J11: 12
B12: 2 блюдо | C12: 97.64 | D12: Жаркое-по домашнему | E12: 200 | F12: 63.97 | G12: 258 | H12: 12 | I12: 14 | J12: 21
B13: напиток | C13: 305.11 | D13: Кисель витаминизированный из концентрата промышленного производства | E13: 200 | F13: 9.08 | G13: 95 | J13: 24
B14: хлеб | C14: 1.2 | D14: Хлеб пшеничный 1С | E14: 30 | F14: 1.77 | G14: 71 | H14: 2 | I14: 0 | J14: 15
B15: хлеб черн. | C15: 421.11 | D15: Хлеб ржаной | E15: 20 | F15: 1.16 | G15: 42 | H15: 0 | I15: 0 | J15: 9
E16: =SUM(E10:E15) -> 650 | F16: 83.78 | G16: 639 | H16: 17 | I16: 24 | J16: 88
E17: =SUM(E10:E15) -> 650 | F17: 83.78 | G17: 639 | H17: 17 | I17: 24 | J17: 88

Sheet День 8
A1: Школа | B1: - | E1: Отд./корп | I1: День
A3: Прием пищи | B3: Раздел | C3: № рец. | D3: Блюдо | E3: Выход, г | F3: Цена | G3: Калорийность | H3: Белки | I3: Жиры | J3: Углеводы
A4: Завтрак | B4: гор. Блюдо | C4: 131.8 | D4: Плов из мяса птицы(филе) | E4: 180 | F4: 52.66 | G4: 359 | H4: 15 | I4: 17 | J4: 37
B5: гор.напиток | C5: 283 | D5: Чай с сахаром | E5: 200 | F5: 1.24 | G5: 40 | J5: 10
B6: хлеб | C6: 1.2 | D6: Хлеб пшеничный 1С | E6: 50 | F6: 2.95 | G6: 130 | H6: 4 | I6: 1 | J6: 28
C7: 401.08 | D7: Масло сливочное | E7: 10 | F7: 7.50 | G7: 66 | H7: 0 | I7: 7 | J7: 0
B8: фрукты | C8: 38 | D8: Яблоки | E8: 100 | F8: 13.00 | G8: 47 | H8: 0 | I8: 0 | J8: 10
E9: =SUM(E4:E8) -> 540 | F9: 77.35 | G9: 642 | H9: 20 | I9: 25 | J9: 85
B10: 1 блюдо | C10: 53.42 | D10: Щи из св. капусты со сметаной | E10: 200/5 | F10: 7.25 | G10: 73 | H10: 2 | I10: 4 | J10: 7
B11: 2 блюдо | C11: 96.19 | D11: Гуляш | E11: 45/45 | F11: 54.67 | G11: 203 | H11: 14 | I11: 15 | J11: 3
B12: гарнир | C12: 211.05 | D12: Макаронные изд. отварные с маслом | E12: 150/5 | F12: 11.10 | G12: 211 | H12: 6 | I12: 4 | J12: 37
B13: гор.напиток | C13: 283 | D13: Чай с сахаром | E13: 200 | F13: 1.84 | G13: 40 | J13: 10
B14: хлеб | C14: 1.2 | D14: Хлеб пшеничный 1С | E14: 30 | F14: 1.77 | G14: 71 | H14: 2 | I14: 0 | J14: 15
B15: хлеб черн. | C15: 1.2 | D15: Хлеб ржаной | E15: 20 | F15: 1.16 | G15: 42 | H15: 0 | I15: 0 | J15: 9
E16: =SUM(E10:E15) -> 250 | F16: 77.79 | G16: 639 | H16: 24 | I16: 24 | J16: 81
E17: =E9+E16 -> 790 | F17: =F9+F16 -> 155 | G17: 1281 | H17: 43 | I17: 49 | J17: 166

Sheet День9
A1: Школа | B1: - | E1: Отд./корп | I1: День
A3: Прием пищи | B3: Раздел | C3: № рец. | D3: Блюдо | E3: Выход, г | F3: Цена | G3: Калорийность | H3: Белки | I3: Жиры | J3: Углеводы
A4: Завтрак | B4: гор.блюдо | C4: 227.7 | D4: Запеканка из творога с сгущен.молоком | E4: 110/10 | F4: 62.06 | G4: 259 | H4: 23 | I4: 9 | J4: 21
B5: гор.напиток | C5: 283 | D5: Кофейный напиток на молоке | E5: 200 | F5: 10.7 | G5: 109 | H5: 3 | I5: 3 | J5: 19
B6: хлеб | C6: 1.1 | D6: Хлеб пшеничный 1 сорта | E6: 50 | F6: 2.95 | G6: 130 | H6: 4 | I6: 1 | J6: 28
C7: 401.08 | D7: Масло сливочное | E7: 10 | F7: 7.50 | G7: 66 | H7: 0 | I7: 7 | J7: 0
B8: фрукты | C8: 38.59 | D8: Яблоки | E8: 150 | F8: 15.60 | G8: 71 | H8: 1 | I8: 1 | J8: 15
E9: =SUM(E4:E8) -> 410 | F9: 98.81 | G9: 635 | H9: 31 | I9: 20 | J9: 82
A10: Обед | B10: закуска | C10: 2.1 | D10: Салат из б/к капусты с морковью | E10: 60 | F10: 5.36 | G10: 62 | H10: 1 | I10: 3 | J10: 7
B11: 1 блюдо | C11: 67.32 | D11: Свекольник со сметаной | E11: 200/10 | F11: 9.87 | G11: 113 | H11: 2 | I11: 5 | J11: 15
B12: 2 блюдо | C12: 423.18 | D12: Тефтели рыбные с томатным соусом | E12: 60/40 | F12: 15.79 | G12: 121 | H12: 8 | I12: 6 | J12: 8
B13: гарнир | C13: 302.01 | D13: Каша гречневая вязкая с маслом | E13: 150/10 | F13: 12.75 | G13: 182 | H13: 5 | I13: 8 | J13: 22
B14: сладкое | C14: 30511 | D14: Кисель витаминизированный из концентрата промышленного производства | E14: 200 | F14: 9.08 | G14: 95 | J14: 24
B15: хлеб | C15: 1.2 | D15: Хлеб пшеничный 1С | E15: 30 | F15: 1.77 | G15: 71 | H15: 2 | I15: 0 | J15: 15
B16: хлеб черн. | C16: 1.2 | D16: Хлеб ржаной | E16: 20 | F16: 1.16 | G16: 42 | H16: 0 | I16: 0 | J16: 9
E17: =SUM(E10:E16) -> 310 | F17: 55.78 | G17: 685 | H17: 19 | I17: 23 | J17: 99
E18: =E9+E17 -> 720 | F18: =F9+F17 -> 155 | G18: 1320 | H18: 50 | I18: 43 | J18: 181

Sheet Лист10
A1: Школа | B1: МОБУ ООШ д. Кургатово | E1: Отд./корп | I1: День | J1: 2022-12-01
A3: Прием пищи | B3: Раздел | C3: № рец. | D3: Блюдо | E3: Выход, г | F3: Цена | G3: Калорийность | H3: Белки | I3: Жиры | J3: Углеводы
A4: Завтрак | B4: 2 блюдо | C4: 493.02 | D4: Каша молочная "Дружба" с маслом | E4: 150/5 | F4: 17.29 | G4: 186 | H4: 5 | I4: 7 | J4: 26
B5: сладкое | C5: 305.11 | D5: Кисель витаминизированный из концентрата промышленного производства | E5: 200 | F5: 9.08 | G5: 95 | J5: 24
C6: 401 | D6: Масло сливочное | E6: 10 | F6: 7.50 | G6: 66 | H6: 0 | I6: 7 | J6: 0
B7: хлеб | C7: 1.1 | D7: Хлеб пшеничный 1 сорта | E7: 50 | F7: 2.95 | G7: 130 | H7: 4 | I7: 1 | J7: 28
C8: 27.01 | D8: Сыр поционный | E8: 11 | F8: 8.45 | G8: 35 | H8: 3 | I8: 3 | J8: 0
E9: =SUM(E4:E8) -> 260 | F9: 45.27 | G9: 512 | H9: 12 | I9: 17 | J9: 77
B10: 1 блюдо | C10: 129.2 | D10: Суп картофельный с горохом и гренками | E10: 250 | F10: 7.47 | G10: 143 | H10: 6 | I10: 5 | J10: 19
B11: 2 блюдо | C11: 502.53 | D11: Биточки из мяса птицы с томатным соусом (филе ) | E11: 90 | F11: 25.5 | G11: 159 | H11: 10 | I11: 9 | J11: 9
B12: гарнир | C12: 212 | D12: Макаронные изд. отварные с маслом | E12: 150 | F12: 11.10 | G12: 211 | H12: 6 | I12: 4 | J12: 37
B13: сладкое | C13: 295 | D13: Компот из свежих плодов | E13: 200 | F13: 8.06 | G13: 79 | H13: 0 | I13: 0 | J13: 18
B14: хлеб | C14: 1.2 | D14: Хлеб пшеничный 1С | E14: 30 | F14: 1.77 | G14: 71 | H14: 2 | I14: 0 | J14: 15
B15: хлеб черн. | D15: Хлеб ржаной | E15: 20 | F15: 1.16 | G15: 42 | H15: 0 | I15: 0 | J15: 9
E16: =SUM(E10:E15) -> 740 | F16: 55.06 | G16: 704 | H16: 24 | I16: 19 | J16: 107
E17: =E9+E16 -> 1000 | F17: 100 | G17: 1216 | H17: 36 | I17: 36 | J17: 185
